fUSD/lending_fUSD_20260405
["ID","MTS","AMOUNT","RATE_DAILY","PERIOD"]
[419789466,1775380257814,-500.0,0.00015871,2]
[419789467,1775380257824,-200.0,0.00015871,2]
[419789468,1775380257833,-500.0,0.00015872,2]
[419789469,1775380257842,-200.0,0.00015872,2]
[419789470,1775380257851,-500.0,0.00015872,2]
[419789471,1775380257861,-500.0,0.00015872,2]
[419789472,1775380257880,-500.0,0.00015872,2]
[419789473,1775380257893,-200.0,0.00015872,2]
[419789474,1775380257905,-200.0,0.00015872,2]
[419789475,1775380257915,-150.0,0.00015872,2]
[419789476,1775380257924,-150.0,0.00015874,2]
[419789477,1775380257934,-150.0,0.00015874,2]
[419789478,1775380257943,-434.0,0.00015876,2]
[419789479,1775380257952,-150.0,0.00015884,2]
[419789480,1775380257962,-150.0,0.00015884,2]
[419789481,1775380257973,-1000.0,0.00015885,2]
[419789482,1775380257983,-561.98524146,0.0001589,2]
[419789483,1775380257994,-704.40114749,0.0001589,2]
[419789484,1775380258005,-500.0,0.0001589,2]
[419789485,1775380258014,-950.63286364,0.0001589,2]
[419789486,1775380258024,-2500.0,0.0001589,2]
[419789487,1775380258034,-2500.0,0.0001589,2]
[419789488,1775380258044,-2006.22994168,0.0001589,2]
[419789489,1775380258054,-2500.0,0.0001589,2]
[419789490,1775380258064,-1100.33490613,0.0001589,2]
[419789491,1775380258075,-2500.0,0.0001589,2]
[419789492,1775380258085,-1947.77606198,0.0001589,2]
[419789493,1775380258096,-2500.0,0.0001589,2]
[419789494,1775380258106,-323.00574972,0.0001589,2]
[419789495,1775380258116,-2006.37622858,0.0001589,2]
[419789496,1775380258126,-150.0,0.00015892,2]
[419789497,1775380258136,-150.0,0.00015893,2]
[419789498,1775380258146,-989.7,0.00015894,2]
[419789499,1775380258156,-1289.0,0.00015894,2]
[419789500,1775380258167,-889.96,0.00015894,2]
[419789501,1775380258176,-150.0,0.00015895,2]
[419789502,1775380258187,-150.0,0.00015897,2]
[419789503,1775380258197,-167.9673,0.000159,2]
[419789504,1775380258208,-24594.73927756,0.000159,2]
[419789505,1775380258219,-774.96562127,0.000159,3]
[419789506,1775380258229,-2881200.30537836,0.000159,5]
[419789507,1775380258239,-300.0,0.000159,5]
[419789508,1775380258250,-3225.33480354,0.000159,2]
[419789509,1775380258261,-672.962147,0.000159,2]
[419789510,1775380258271,-672.962147,0.000159,2]
[419789511,1775380258282,-672.962147,0.000159,2]
[419789512,1775380258292,-672.962147,0.000159,2]
[419789513,1775380258303,-31143.28476019,0.000159,2]
[419789514,1775380258315,-2000.0,0.00015901,2]
[419789515,1775380258325,-150.0,0.00015904,2]
[419789516,1775380258335,-1605.51,0.00015909,2]
[419789517,1775380258346,-765.0,0.00015909,2]
[419789518,1775380258356,-1289.11,0.00015909,2]
[419789519,1775380258366,-150.0,0.0001591,2]
[419789520,1775380258376,-150.0,0.00015911,2]
[419789521,1775380258387,-167.16,0.00015911,2]
[419789522,1775380258397,-150.0,0.00015913,2]
[419789523,1775380258407,-150.0,0.00015913,2]
[419789524,1775380258417,-150.0,0.00015916,2]
[419789525,1775380258428,-150.0,0.00015923,2]
[419789526,1775380258438,-150.0,0.00015928,2]
[419789527,1775380258448,-150.0,0.0001593,2]
[419789528,1775380258459,-150.0,0.00015936,2]
[419789529,1775380258469,-150.0,0.00015937,2]
[419789530,1775380258479,-434.0,0.00015938,2]
[419789531,1775380258490,-181.87,0.0001594,2]
[419789532,1775380258500,-150.0,0.00015942,2]
[419789533,1775380258510,-150.0,0.00015942,2]
[419789534,1775380258520,-150.0,0.00015946,2]
[419789535,1775380258529,-150.0,0.00015947,2]
[419789536,1775380258539,-150.0,0.00015948,2]
[419789537,1775380258550,-500.0,0.00015955,2]
[419789538,1775380258559,-731.57,0.00015955,2]
[419789539,1775380258569,-1135.9,0.00015955,2]
[419789540,1775380258579,-674.6,0.00015955,2]
[419789541,1775380258592,-500.0,0.00015955,2]
[419789542,1775380258602,-1337.87763051,0.00015956,2]
[419789543,1775380258611,-150.0,0.00015958,2]
[419789544,1775380258622,-150.0,0.00015959,2]
[419789545,1775380258632,-150.0,0.00015964,2]
[419789546,1775380258642,-150.0,0.00015968,2]
[419789547,1775380258652,-150.0,0.00015971,2]
[419789548,1775380258662,-150.0,0.00015971,2]
[419789549,1775380258672,-500.0,0.00015973,2]
[419789550,1775380258684,-500.0,0.00015973,2]
[419789551,1775380258695,-500.0,0.00015973,2]
[419789552,1775380258705,-150.0,0.00015974,2]
[419789553,1775380258715,-989.7,0.00015975,2]
[419789554,1775380258725,-989.7,0.00015975,2]
[419789555,1775380258735,-1605.51,0.00015975,2]
[419789556,1775380258745,-1289.0,0.00015975,2]
[419789557,1775380258755,-1289.0,0.00015975,2]
[419789558,1775380258765,-765.0,0.00015975,2]
[419789559,1775380258775,-1289.11,0.00015975,2]
[419789560,1775380258786,-889.96,0.00015975,2]
[419789561,1775380258796,-889.96,0.00015975,2]
[419789562,1775380258805,-150.0,0.00015979,2]
[419789563,1775380258815,-500.0,0.0001598,2]
[419789564,1775380258825,-150.0,0.00015982,2]
[419789565,1775380258835,-500.0,0.00015985,2]
[419789566,1775380258846,-500.0,0.00015986,2]
[419789567,1775380258856,-500.0,0.00015987,2]
[419789568,1775380258866,-500.0,0.00015988,2]
[419789569,1775380258876,-500.0,0.00015989,2]
[419789570,1775380258887,-500.0,0.00015989,2]
[419789571,1775380258896,-184.01671123,0.0001599,2]
[419789572,1775380258907,-440.0,0.00015992,2]
[419789573,1775380258917,-500.0,0.00015993,2]
[419789574,1775380258927,-500.0,0.00015993,2]
[419789575,1775380258936,-500.0,0.00015993,2]
[419789576,1775380258946,-500.0,0.00015993,2]
[419789577,1775380258956,-731.57,0.00015993,2]
[419789578,1775380258967,-731.57,0.00015993,2]
[419789579,1775380258977,-731.57,0.00015993,2]
[419789580,1775380258987,-731.57,0.00015993,2]
[419789581,1775380258997,-731.62178076,0.00015993,2]
[419789582,1775380259007,-1135.9,0.00015993,2]
[419789583,1775380259017,-1135.9,0.00015993,2]
[419789584,1775380259027,-1135.9,0.00015993,2]
[419789585,1775380259038,-1135.9,0.00015993,2]
[419789586,1775380259048,-1136.09278756,0.00015993,2]
[419789587,1775380259058,-1098.69,0.00015993,2]
[419789588,1775380259068,-1098.69,0.00015993,2]
[419789589,1775380259078,-1098.69,0.00015993,2]
[419789590,1775380259089,-1098.69,0.00015993,2]
[419789591,1775380259099,-1098.7309854,0.00015993,2]
[419789592,1775380259109,-674.6,0.00015993,2]
[419789593,1775380259119,-674.6,0.00015993,2]
[419789594,1775380259130,-674.6,0.00015993,2]
[419789595,1775380259140,-674.6,0.00015993,2]
[419789596,1775380259151,-674.82397972,0.00015993,2]
[419789597,1775380259161,-500.0,0.00015993,2]
[419789598,1775380259171,-500.0,0.00015993,2]
[419789599,1775380259181,-500.0,0.00015993,2]
[419789600,1775380259191,-467.45469685,0.00015993,2]
[419789601,1775380259202,-879.87,0.00015993,2]
[419789602,1775380259212,-879.87,0.00015993,2]
[419789603,1775380259222,-879.87,0.00015993,2]
[419789604,1775380259233,-879.87,0.00015993,2]
[419789605,1775380259243,-880.01513851,0.00015993,2]
[419789606,1775380259254,-666.0,0.00015993,2]
[419789607,1775380259265,-608.83994388,0.00015993,2]
[419789608,1775380259275,-666.0,0.00015993,2]
[419789609,1775380259284,-210333.0936321,0.00015994,2]
[419789610,1775380259294,-4817.9468168,0.00015994,2]
[419789611,1775380259305,-260098.902486,0.00015994,2]
[419789612,1775380259315,-176.057184,0.00015997,2]
[419789613,1775380259325,-666.0,0.00015998,2]
[419789614,1775380259335,-666.0,0.00015998,2]
[419789615,1775380259346,-666.0,0.00015999,2]
[419789616,1775380259361,-2000.0,0.00015999,2]
[419789617,1775380259372,-989.7,0.00015999,2]
[419789618,1775380259384,-989.7,0.00015999,2]
[419789619,1775380259395,-989.7,0.00015999,2]
[419789620,1775380259406,-989.7,0.00015999,2]
[419789621,1775380259418,-989.7,0.00015999,2]
[419789622,1775380259429,-989.7,0.00015999,2]
[419789623,1775380259439,-989.83053791,0.00015999,2]
[419789624,1775380259450,-1605.51,0.00015999,2]
[419789625,1775380259461,-1605.51,0.00015999,2]
[419789626,1775380259472,-1605.51,0.00015999,2]
[419789627,1775380259482,-1605.51,0.00015999,2]
[419789628,1775380259493,-1605.51,0.00015999,2]
[419789629,1775380259503,-1605.51,0.00015999,2]
[419789630,1775380259513,-1605.51,0.00015999,2]
[419789631,1775380259523,-1605.5210465,0.00015999,2]
[419789632,1775380259533,-1289.0,0.00015999,2]
[419789633,1775380259544,-1289.0,0.00015999,2]
[419789634,1775380259554,-1289.0,0.00015999,2]
[419789635,1775380259564,-1289.0,0.00015999,2]
[419789636,1775380259575,-1289.0,0.00015999,2]
[419789637,1775380259585,-1289.0,0.00015999,2]
[419789638,1775380259596,-1289.07918003,0.00015999,2]
[419789639,1775380259606,-765.0,0.00015999,2]
[419789640,1775380259617,-765.0,0.00015999,2]
[419789641,1775380259627,-765.0,0.00015999,2]
[419789642,1775380259638,-765.0,0.00015999,2]
[419789643,1775380259648,-765.0,0.00015999,2]
[419789644,1775380259658,-765.0,0.00015999,2]
[419789645,1775380259668,-765.0,0.00015999,2]
[419789646,1775380259679,-765.02950636,0.00015999,2]
[419789647,1775380259689,-1289.11,0.00015999,2]
[419789648,1775380259699,-1289.11,0.00015999,2]
[419789649,1775380259710,-1289.11,0.00015999,2]
[419789650,1775380259720,-1289.11,0.00015999,2]
[419789651,1775380259730,-1289.11,0.00015999,2]
[419789652,1775380259741,-1289.11,0.00015999,2]
[419789653,1775380259751,-1289.11,0.00015999,2]
[419789654,1775380259761,-1289.19484396,0.00015999,2]
[419789655,1775380259771,-214.78070273,0.00015999,2]
[419789656,1775380259782,-889.96,0.00015999,2]
[419789657,1775380259792,-889.96,0.00015999,2]
[419789658,1775380259802,-889.96,0.00015999,2]
[419789659,1775380259812,-889.96,0.00015999,2]
[419789660,1775380259823,-889.96,0.00015999,2]
[419789661,1775380259833,-889.96,0.00015999,2]
[419789662,1775380259845,-889.97745143,0.00015999,2]
[419789663,1775380259856,-459.70598754,0.00015999,2]
[419789664,1775380259867,-214.21185671,0.00016,2]
[419789665,1775380259877,-150.14541726,0.00016,2]
[419789666,1775380259887,-245.0843554,0.00016,2]
[419789667,1775380259898,-238.91917798,0.00016,2]
[419789668,1775380259908,-151.22967101,0.00016,2]
[419789669,1775380259918,-150.17540857,0.00016,2]
[419789670,1775380259928,-151.90807937,0.00016,2]
[419789671,1775380259938,-218.5136836,0.00016,2]
[419789672,1775380259948,-151.01430456,0.00016,2]
[419789673,1775380259959,-150.60277619,0.00016,2]
[419789674,1775380259969,-287.38140471,0.00016,2]
[419789675,1775380259979,-154.07899059,0.00016,2]
[419789676,1775380259989,-151.75828689,0.00016,2]
[419789677,1775380259999,-229.30177922,0.00016,2]
[419789678,1775380260010,-593927.92229091,0.00016,2]
[419789679,1775380261845,2549.0356895,8.946e-05,2]
[419789680,1775380261885,10000.01,8.946e-05,2]
[419789681,1775380261924,10000.01,8.946e-05,2]
[419789682,1775380261963,10000.01,8.946e-05,2]
[419789683,1775380262005,10000.01,8.946e-05,2]
[419789684,1775380262046,10000.01,8.946e-05,2]
[419789685,1775380262085,10000.01,8.946e-05,2]
[419789686,1775380262125,10000.01,8.946e-05,2]
[419789687,1775380262163,5802.4583105,8.946e-05,2]
[419789688,1775380264260,-1.00720788,0.00016,2]
[419789689,1775380264369,-2090.40897658,0.00016,2]
[419789690,1775380264629,500.0,9.112e-05,2]
[419789691,1775380265238,-500.0,9.23e-05,2]
[419789692,1775380265247,-1155.08691787,0.00014355,2]
[419789693,1775380265838,-497.49770464,0.00013698,2]
[419789694,1775380265848,-2614.91308213,0.00014355,2]
[419789695,1775380265857,-2745.73624333,0.00016,2]
[419789696,1775380267391,501.00649781,9.112e-05,2]
[419789697,1775380267426,162.42408175,9.112e-05,2]
[419789698,1775380270477,10000.01,9.13e-05,2]
[419789699,1775380270501,10000.01,9.13e-05,2]
[419789700,1775380270524,10000.01,9.13e-05,2]
[419789701,1775380270546,10000.01,9.13e-05,2]
[419789702,1775380270568,10000.01,9.13e-05,2]
[419789703,1775380270623,-3337.3575,9.13e-05,2]
[419789704,1775380270696,-3325.295,9.13e-05,2]
[419789705,1775380297845,2500.0,9.131e-05,2]
[419789706,1775380324743,182.6444205,9.23e-05,2]
[419789707,1775380326024,500.0,9.23e-05,2]
[419789708,1775380326058,500.0,9.23e-05,2]
[419789709,1775380326178,500.0,9.23e-05,2]
[419789710,1775380326208,500.0,9.23e-05,2]
[419789711,1775380326330,500.0,9.23e-05,2]
[419789712,1775380326367,500.0,9.23e-05,2]
[419789713,1775380326427,564.14596289,9.23e-05,2]
[419789714,1775380326495,500.0,9.23e-05,2]
[419789715,1775380326716,500.0,9.23e-05,2]
[419789716,1775380332104,2753.21961661,9.113e-05,2]
[419789717,1775380332128,10000.01,9.113e-05,2]
[419789718,1775380332153,10000.01,9.113e-05,2]
[419789719,1775380332176,10000.01,9.113e-05,2]
[419789720,1775380387398,2404.974547,7.945e-05,2]
[419789721,1775380463167,152.0,6.635e-05,2]
[419789722,1775380463628,152.0,6.635e-05,2]
[419789723,1775380463734,152.0,6.635e-05,2]
[419789724,1775380463991,152.0,6.635e-05,2]
[419789725,1775380465522,152.0,6.635e-05,2]
[419789726,1775380465558,152.0,6.635e-05,2]
[419789727,1775380465686,152.0,6.635e-05,2]
[419789728,1775380465748,152.0,6.635e-05,2]
[419789729,1775380465879,152.0,6.635e-05,2]
[419789730,1775380465940,152.0,6.635e-05,2]
[419789731,1775380465982,152.0,6.635e-05,2]
[419789732,1775380466051,152.0,6.635e-05,2]
[419789733,1775380466273,152.0,6.635e-05,2]
[419789734,1775380466540,152.0,6.635e-05,2]
[419789735,1775380499003,-276.0,8.784e-05,2]
[419789736,1775380499024,-500.0,8.784e-05,2]
[419789737,1775380499044,-299.96275471,9.012e-05,2]
[419789738,1775380499070,-500.0,9.012e-05,2]
[419789739,1775380499091,-500.0,9.012e-05,2]
[419789740,1775380499113,-425.36021124,9.012e-05,2]
[419789741,1775380499133,-500.0,9.012e-05,2]
[419789742,1775380499159,-500.0,9.012e-05,2]
[419789743,1775380499180,-95.67703405,9.012e-05,2]
[419789744,1775380508092,2888.176223,7.945e-05,2]
[419789745,1775380529077,-500.0,8.993e-05,2]
[419789746,1775380529100,-500.0,8.993e-05,2]
[419789747,1775380529121,-500.0,8.993e-05,2]
[419789748,1775380529142,-1200.0,9.011e-05,2]
[419789749,1775380529163,-150.0,9.011e-05,2]
[419789750,1775380529184,-404.32296595,9.012e-05,2]
[419789751,1775380529206,-500.0,9.012e-05,2]
[419789752,1775380529232,-500.0,9.012e-05,2]
[419789753,1775380529254,-500.0,9.012e-05,2]
[419789754,1775380529279,-500.0,9.012e-05,2]
[419789755,1775380529301,-500.0,9.012e-05,2]
[419789756,1775380529327,-500.0,9.012e-05,2]
[419789757,1775380529350,-415.11703994,9.012e-05,2]
[419789758,1775380529375,-500.0,9.012e-05,2]
[419789759,1775380529396,-259.55999411,9.012e-05,2]
[419789760,1775380552603,-240.44000589,9.012e-05,2]
[419789761,1775380552641,-500.0,9.012e-05,2]
[419789762,1775380552675,-500.0,9.012e-05,2]
[419789763,1775380552707,-500.0,9.012e-05,2]
[419789764,1775380552742,-500.0,9.012e-05,2]
[419789765,1775380552772,-500.0,9.012e-05,2]
[419789766,1775380552809,-500.0,9.012e-05,2]
[419789767,1775380552843,-500.0,9.012e-05,2]
[419789768,1775380552880,-500.0,9.012e-05,2]
[419789769,1775380552914,-500.0,9.012e-05,2]
[419789770,1775380552949,-19.12998822,9.012e-05,2]
[419789771,1775380553144,-480.87001178,9.012e-05,2]
[419789772,1775380553178,-500.0,9.012e-05,2]
[419789773,1775380553212,-500.0,9.012e-05,2]
[419789774,1775380553247,-500.0,9.012e-05,2]
[419789775,1775380553281,-500.0,9.012e-05,2]
[419789776,1775380553315,-500.0,9.012e-05,2]
[419789777,1775380553349,-500.0,9.012e-05,2]
[419789778,1775380553383,-593.04923257,9.012e-05,2]
[419789779,1775380553417,-500.0,9.012e-05,2]
[419789780,1775380553450,-352.1715113,9.012e-05,2]
[419789781,1775380553648,-147.8284887,9.012e-05,2]
[419789782,1775380553682,-500.0,9.012e-05,2]
[419789783,1775380553711,-500.0,9.012e-05,2]
[419789784,1775380553744,-500.0,9.012e-05,2]
[419789785,1775380553778,-500.0,9.012e-05,2]
[419789786,1775380553808,-500.0,9.012e-05,2]
[419789787,1775380553841,-500.0,9.012e-05,2]
[419789788,1775380553869,-546.12411555,9.012e-05,2]
[419789789,1775380553902,-500.0,9.012e-05,2]
[419789790,1775380553935,-500.0,9.012e-05,2]
[419789791,1775380553969,-112.1047915,9.012e-05,2]
[419789792,1775380555405,-387.8952085,9.012e-05,2]
[419789793,1775380555436,-500.0,9.012e-05,2]
[419789794,1775380555468,-500.0,9.012e-05,2]
[419789795,1775380555500,-500.0,9.012e-05,2]
[419789796,1775380555534,-500.0,9.012e-05,2]
[419789797,1775380555566,-500.0,9.012e-05,2]
[419789798,1775380555599,-500.0,9.012e-05,2]
[419789799,1775380555632,-500.0,9.012e-05,2]
[419789800,1775380555670,-500.0,9.012e-05,2]
[419789801,1775380555706,-500.0,9.012e-05,2]
[419789802,1775380555769,-500.0,9.012e-05,2]
[419789803,1775380555802,-500.0,9.012e-05,2]
[419789804,1775380555835,-500.0,9.012e-05,2]
[419789805,1775380555869,-500.0,9.012e-05,2]
[419789806,1775380555901,-500.0,9.012e-05,2]
[419789807,1775380555934,-500.0,9.012e-05,2]
[419789808,1775380555966,-500.0,9.012e-05,2]
[419789809,1775380555998,-500.0,9.012e-05,2]
[419789810,1775380556031,-500.0,9.012e-05,2]
[419789811,1775380556064,-500.0,9.012e-05,2]
[419789812,1775380556157,-500.0,9.012e-05,2]
[419789813,1775380556190,-500.0,9.012e-05,2]
[419789814,1775380556224,-500.0,9.012e-05,2]
[419789815,1775380556256,-500.0,9.012e-05,2]
[419789816,1775380556290,-500.0,9.012e-05,2]
[419789817,1775380556323,-500.0,9.012e-05,2]
[419789818,1775380556352,-500.0,9.012e-05,2]
[419789819,1775380556386,-500.0,9.012e-05,2]
[419789820,1775380556420,-500.0,9.012e-05,2]
[419789821,1775380556453,-500.0,9.012e-05,2]
[419789822,1775380556916,-500.0,9.012e-05,2]
[419789823,1775380556948,-500.0,9.012e-05,2]
[419789824,1775380556981,-500.0,9.012e-05,2]
[419789825,1775380557014,-500.0,9.012e-05,2]
[419789826,1775380557046,-500.0,9.012e-05,2]
[419789827,1775380557078,-500.0,9.012e-05,2]
[419789828,1775380557110,-359.30492326,9.012e-05,2]
[419789829,1775380557142,-500.0,9.012e-05,2]
[419789830,1775380557174,-500.0,9.012e-05,2]
[419789831,1775380557206,-500.0,9.012e-05,2]
[419789832,1775380557396,-500.0,9.012e-05,2]
[419789833,1775380557430,-500.0,9.012e-05,2]
[419789834,1775380557464,-500.0,9.012e-05,2]
[419789835,1775380557499,-500.0,9.012e-05,2]
[419789836,1775380557529,-481.0,9.012e-05,2]
[419789837,1775380558052,-10000.0,9.013e-05,2]
[419789838,1775380610435,500.0,0.0001155,10]
[419789839,1775380621304,300.0,9.012e-05,2]
[419789840,1775380639500,-6652.0,9.013e-05,2]
[419789841,1775380640079,4656.0,0.0001155,10]
[419789842,1775380662719,4656.0,9.013e-05,2]
[419789843,1775380682343,-150.0,9.012e-05,2]
[419789844,1775380682353,-2402.74365917,9.013e-05,2]
[419789845,1775380683960,-300.0,9.012e-05,2]
[419789846,1775380684005,-9400.01,9.013e-05,2]
[419789847,1775380684062,-10000.01,9.013e-05,2]
[419789848,1775380684190,-10000.01,9.013e-05,2]
[419789849,1775380684327,-10000.01,9.013e-05,2]
[419789850,1775380684424,-10000.01,9.013e-05,2]
[419789851,1775380684551,-10000.01,9.013e-05,2]
[419789852,1775380684679,-10000.01,9.013e-05,2]
[419789853,1775380684802,-10000.01,9.013e-05,2]
[419789854,1775380684950,-10000.01,9.013e-05,2]
[419789855,1775380697889,500.0,9.012e-05,2]
[419789856,1775380697923,541.26406312,9.012e-05,2]
[419789857,1775380697957,500.0,9.012e-05,2]
[419789858,1775380698121,500.0,9.012e-05,2]
[419789859,1775380698166,500.0,9.012e-05,2]
[419789860,1775380698201,500.0,9.012e-05,2]
[419789861,1775380698282,500.0,9.012e-05,2]
[419789862,1775380698346,500.0,9.012e-05,2]
[419789863,1775380698517,472.3296,8.912e-05,2]
[419789864,1775380735574,150.0,8.742e-05,2]
[419789865,1775380738535,1200.0,9.012e-05,2]
[419789866,1775380741427,300.0,9.012e-05,2]
[419789867,1775380756167,500.0,9.012e-05,2]
[419789868,1775380756217,352.56990205,9.012e-05,2]
[419789869,1775380760870,2500.0,8.913e-05,2]
[419789870,1775380801176,483.84643483,9.012e-05,2]
[419789871,1775380801200,716.15356517,9.012e-05,2]
[419789872,1775380801230,300.0,9.012e-05,2]
[419789873,1775380801281,300.0,9.012e-05,2]
[419789874,1775380823451,-55150.0,9.013e-05,2]
[419789875,1775380851878,-7582.0,9.013e-05,2]
[419789876,1775380861295,300.0,9.012e-05,2]
[419789877,1775380861642,150.0,9.012e-05,2]
[419789878,1775380862927,300.0,9.012e-05,2]
[419789880,1775380879425,500.0,9.012e-05,2]
[419789881,1775380879458,244.85913321,9.012e-05,2]
[419789882,1775380879494,500.0,9.012e-05,2]
[419789883,1775380879529,500.0,9.012e-05,2]
[419789884,1775380879569,500.0,9.012e-05,2]
[419789885,1775380879599,516.8891154,9.012e-05,2]
[419789886,1775380879640,500.0,9.012e-05,2]
[419789887,1775380879677,500.0,9.012e-05,2]
[419789888,1775380879714,500.0,9.012e-05,2]
[419789889,1775380879752,500.0,9.012e-05,2]
[419789890,1775380879790,500.0,9.012e-05,2]
[419789891,1775380879835,349.03790645,9.012e-05,2]
[419789892,1775380879871,500.0,9.012e-05,2]
[419789893,1775380879907,500.0,9.012e-05,2]
[419789894,1775380879945,500.0,9.012e-05,2]
[419789895,1775380879981,500.0,9.012e-05,2]
[419789896,1775380880027,323.07027977,9.012e-05,2]
[419789897,1775380880057,176.92972023,9.012e-05,2]
[419789898,1775380880096,500.0,9.012e-05,2]
[419789899,1775380880131,500.0,9.012e-05,2]
[419789900,1775380880167,500.0,9.012e-05,2]
[419789901,1775380880208,500.0,9.012e-05,2]
[419789902,1775380880248,500.0,9.012e-05,2]
[419789903,1775380880286,500.0,9.012e-05,2]
[419789904,1775380880326,500.0,9.012e-05,2]
[419789905,1775380880362,500.0,9.012e-05,2]
[419789906,1775380880398,500.0,9.012e-05,2]
[419789907,1775380880434,500.0,9.012e-05,2]
[419789908,1775380880471,500.0,9.012e-05,2]
[419789909,1775380880556,500.0,9.012e-05,2]
[419789910,1775380880629,500.0,9.012e-05,2]
[419789911,1775380880675,500.0,9.012e-05,2]
[419789912,1775380880734,500.0,9.012e-05,2]
[419789913,1775380880771,500.0,9.012e-05,2]
[419789914,1775380880816,500.0,9.012e-05,2]
[419789915,1775380888311,1323.08027977,8.832e-05,2]
[419789916,1775380888336,6077.06672023,8.832e-05,2]
[419789917,1775380888498,298.857,8.832e-05,2]
[419789918,1775380889154,-1980.0,9.013e-05,2]
[419789919,1775380913453,-2049.0,9.013e-05,2]
[419789920,1775380918424,2500.0,8.913e-05,2]
[419789921,1775381041119,300.0,9.012e-05,2]
[419789922,1775381041711,150.0,9.012e-05,2]
[419789923,1775381058835,500.0,9.012e-05,2]
[419789924,1775381058932,174.08627977,9.012e-05,2]
[419789925,1775381058962,325.91372023,9.012e-05,2]
[419789926,1775381058999,489.03019696,9.012e-05,2]
[419789927,1775381059049,500.0,9.012e-05,2]
[419789928,1775381080366,2500.0,8.913e-05,2]
[419789929,1775381101370,1200.0,9.012e-05,2]
[419789930,1775381161230,300.0,9.012e-05,2]
[419789931,1775381221579,150.0,9.012e-05,2]
[419789932,1775381238139,2500.0,8.913e-05,2]
[419789933,1775381341131,300.0,9.012e-05,2]
[419789934,1775381348128,-2043.3,9.013e-05,2]
[419789935,1775381396589,1735.06608281,8.913e-05,2]
[419789936,1775381396631,764.93391719,8.913e-05,2]
[419789937,1775381401137,300.0,9.012e-05,2]
[419789938,1775381401446,1200.0,9.012e-05,2]
[419789939,1775381402048,150.0,9.012e-05,2]
[419789940,1775381431987,-266.38014877,9.013e-05,2]
[419789941,1775381432095,-293550.01380242,9.013e-05,2]
[419789942,1775381432106,-4600.08170778,9.013e-05,2]
[419789943,1775381432117,-58869.76910012,9.013e-05,2]
[419789961,1775381434458,7585.07608281,8.913e-05,2]
[419789962,1775381434482,10000.01,8.913e-05,2]
[419789963,1775381434505,10000.01,8.913e-05,2]
[419789964,1775381434528,10000.01,8.913e-05,2]
[419789965,1775381434552,10000.01,8.913e-05,2]
[419789966,1775381434576,10000.01,8.913e-05,2]
[419789967,1775381434600,10000.01,8.913e-05,2]
[419789968,1775381434623,10000.01,8.913e-05,2]
[419789969,1775381434646,10000.01,8.913e-05,2]
[419789970,1775381438077,-1620.0,8.913e-05,2]
[419789971,1775381438786,-1277.27139037,8.913e-05,2]
[419789972,1775381438807,-1370.23826138,8.913e-05,2]
[419789998,1775381440837,-128166.85681924,8.913e-05,2]
[419790003,1775381440876,-6653.03943673,8.913e-05,2]
[419790006,1775381440898,-1273327.43800947,8.913e-05,2]
[419790008,1775381440907,-992344.61638174,9.013e-05,2]
[419790010,1775381440917,-5000.0,9.013e-05,2]
[419790012,1775381440926,-250.0,9.013e-05,2]
[419790014,1775381440934,-364.19001434,9.013e-05,2]
[419790016,1775381440944,-50000.0,9.013e-05,2]
[419790018,1775381440953,-279.0,9.013e-05,2]
[419790020,1775381440963,-4851.14481268,9.029e-05,2]
[419790022,1775381440973,-503.23062407,9.093e-05,2]